{"text_format":"1","workbook":"xlsx","n_sheets":4,"sheets":["09.12.2016","10.12.2016","18.12.2016","22.12.2016"],"not_rendered":{"charts":0,"images":0,"macros":1,"external_links":0,"defined_names":0,"comments":0,"pivot_tables":0},"unopened":[],"bounds":{"document_bytes":16777216,"sheet_cells":100000,"rows_first":2000,"rows_last":500,"rows_between":2000,"halvings":0,"cell_chars":16384,"cell_head_chars":4096},"cells_cut":0,"cells_raw":0,"read":"whole","date_system":"1900"}

{"sheet":"09.12.2016","index":0,"n_rows":40,"n_cols":12,"rows_kept":40,"cut":false,"hidden":false,"merged":[[27,0,27,1],[37,0,37,1]]}
["Название","Цена (розн.)","Количество товара на  начало смены","Возврат товара на склад","Продано через КАССУ","Передано \"Аксиомус\"","Передано \"DPD\"","Всего продано (шт.)","Количество товара на  конец смены","В кассе наличных (руб.)","Выбито чеков за товар на сумму","Выручка (общ.)"]
[]
["Зеркало Beurer FCE79 косметическое",3800,100,2,3,3,2,{"$f":"E3+F3+G3","v":8},{"$f":"C3-H3+D3","v":94},{"$f":"B3*E3","v":11400},{"$f":"(E3*B3)+(F3*B3)","v":22800},{"$f":"H3*B3","v":30400}]
["Зеркало Beurer BS05 косметическое",570,null,null,null,null,null,0,84,0,0,0]
["Маникюрный набор МР05",890,null,null,null,null,null,0,56,0,0,0]
["Маникюрно-педикюрный набор Beurer MPE60 (9 насадок)",3800,null,null,null,null,null,0,3,0,0,0]
["Маникюрно-педикюрный набор Beurer MPE100 (10 насадок)",9500,null,null,null,null,null,0,56,0,0,0]
["Прибор для удаления мозолей Beurer MPE50",2900,null,null,null,null,null,0,15,0,0,0]
["Эпилятор HLE60",3000,null,null,null,null,null,0,null,0,0,0]
["Прибор для сушки ногтей Beurer MPE58",4100,null,null,null,null,null,0,null,0,0,0]
["Массажная щетка для лица Beurer FCE60",2350,null,null,null,null,null,0,null,0,0,0]
["Фен для волос Beurer HDE30",1850,null,null,null,null,null,0,null,0,0,0]
["Мультистайлер для волос BEURER HTE50",2000,null,null,null,null,null,0,null,0,0,0]
["Парафиновая ванночка Beurer MPE70",3100,null,null,null,null,null,0,null,0,0,0]
["Электробритва женская BEURER HLE30",2250,null,null,null,null,null,0,null,0,0,0]
["Прибор для удаления волос воском BEURER HLE40",2565,null,null,null,null,null,0,null,0,0,0]
["Сетевой адаптер к тонометрам (БПС)",550,null,null,null,null,null,{"$f":"E17+F17+G17","v":0},null,{"$f":"B17*E17","v":0},{"$f":"(E17*B17)+(F17*B17)","v":0},{"$f":"H17*B17","v":0}]
["Расходные и перевязочные материалы"]
["Мочеприемник носимый ножной Люкс 750 мл, длина трубки 28 см, Apexmed",225,null,null,null,null,null,{"$f":"E19+F19+G19","v":0},null,{"$f":"B19*E19","v":0},{"$f":"(E19*B19)+(F19*B19)","v":0},{"$f":"H19*B19","v":0}]
["Мочеприемник носимый ножной Люкс 750 мл, длина трубки 50 см, Apexmed",155,null,null,null,null,null,0,null,0,0,0]
["Мочеприемник прикроватный 1000 мл, Apexmed",41,null,null,null,null,null,0,null,0,0,0]
["Мочеприемник прикроватный 2000 мл, Apexmed",44,null,null,null,null,null,0,null,0,0,0]
["Мочеприемник прикроватный Люкс 2000 мл, Apexmed",192,null,null,null,null,null,0,null,0,0,0]
["Катетер для самокатетеризации мужской лубрицированный Coloplast EasiCath 12 разм",80,null,null,null,null,null,0,null,0,0,0]
[]
[]
[]
["ВСЕГО:",null,null,null,{"$f":"SUM(E3:E27)","v":3},{"$f":"SUM(F3:F27)","v":3},{"$f":"SUM(G3:G27)","v":2},{"$f":"SUM(H3:H27)","v":8},null,{"$f":"SUM(J3:J27)+E38","v":11400},{"$f":"SUM(K3:K27)","v":22800},{"$f":"SUM(L3:L27)+L38","v":31050}]
[null,"Цена (розн.)",null,null,"Продано через КАССУ","Передано \"Аксиомус\"","Передано \"DPD\"","Всего продано (шт.)",null,"В кассе наличных (руб.)","Выбито чеков за товар на сумму","Выручка (общ.)"]
[]
["Доставка",null,null,null,"Экспресс доставка",null,null,"доставка \"Аксиомус\""]
["Доставка ",100,null,null,null,null,null,null,null,null,null,{"$f":"B32*(H32+E32)","v":0}]
["Доставка ",300,null,null,null,null,null,1,null,null,null,300]
["Доставка",350,null,null,null,null,null,1,null,null,null,350]
["Доставка ",400,null,null,null,null,null,null,null,null,null,0]
["Доставка ",550,null,null,null,null,null,null,null,null,null,0]
["Доставка ",800,null,null,null,null,null,null,null,null,null,0]
["ВСЕГО:",null,null,null,{"$f":"(E32*B32)+(E33*B33)+(E34*B34)+(E35*B35)+(E36*B36)+(E37*B37)","v":0},null,null,{"$f":"(H32*B32)+(H33*B33)+(H34*B34)+(H35*B35)+(H36*B36)+(H37*B37)","v":650},null,null,null,{"$f":"SUM(L32:L37)","v":650}]
[]
[null,null,null,null,null,null,null,null,null,"Z-ОТЧЕТ",null,{"$f":"K28+L38","v":23450}]

{"sheet":"10.12.2016","index":1,"n_rows":39,"n_cols":12,"rows_kept":39,"cut":false,"hidden":false,"merged":[[26,0,26,1],[36,0,36,1]]}
["Название","Цена (розн.)","Количество товара на  начало смены","Возврат товара на склад","Продано через КАССУ","Передано \"Аксиомус\"","Передано \"DPD\"","Всего продано (шт.)","Количество товара на  конец смены","В кассе наличных (руб.)","Выбито чеков за товар на сумму","Выручка (общ.)"]
[]
["Зеркало Beurer FCE79 косметическое",3800,{"$f":"'09.12.2016'!I3","v":94},1,1,1,1,{"$f":"E3+F3+G3","v":3},{"$f":"C3-H3+D3","v":92},{"$f":"B3*E3","v":3800},{"$f":"(E3*B3)+(F3*B3)","v":7600},{"$f":"H3*B3","v":11400}]
["Зеркало Beurer BS05 косметическое",570,{"$f":"'09.12.2016'!I4","v":84},null,null,null,1,1,{"$f":"C4-H4+D4","v":83},0,0,570]
["Маникюрный набор МР05",890,{"$f":"'09.12.2016'!I5","v":56},null,null,1,null,1,55,0,890,890]
["Маникюрно-педикюрный набор Beurer MPE60 (9 насадок)",3800,{"$f":"'09.12.2016'!I6","v":3},null,null,null,null,0,3,0,0,0]
["Маникюрно-педикюрный набор Beurer MPE100 (10 насадок)",9500,{"$f":"'09.12.2016'!I7","v":56},null,null,null,null,0,56,0,0,0]
["Прибор для удаления мозолей Beurer MPE50",2900,{"$f":"'09.12.2016'!I8","v":15},null,null,null,null,0,15,0,0,0]
["Эпилятор HLE60",3000,{"$f":"'09.12.2016'!I9","v":0},null,null,null,null,0,null,0,0,0]
["Прибор для сушки ногтей Beurer MPE58",4100,{"$f":"'09.12.2016'!I10","v":0},null,null,null,null,0,null,0,0,0]
["Массажная щетка для лица Beurer FCE60",2350,null,null,null,null,null,0,null,0,0,0]
["Фен для волос Beurer HDE30",1850,null,null,null,null,null,0,null,0,0,0]
["Мультистайлер для волос BEURER HTE50",2000,null,null,null,null,null,0,null,0,0,0]
["Парафиновая ванночка Beurer MPE70",3100,null,null,null,null,null,0,null,0,0,0]
["Электробритва женская BEURER HLE30",2250,null,null,null,null,null,0,null,0,0,0]
["Прибор для удаления волос воском BEURER HLE40",2565,null,null,null,null,null,0,null,0,0,0]
["Расходные и перевязочные материалы"]
["Мочеприемник носимый ножной Люкс 750 мл, длина трубки 28 см, Apexmed",225,null,null,null,null,null,{"$f":"E18+F18+G18","v":0},null,{"$f":"B18*E18","v":0},{"$f":"(E18*B18)+(F18*B18)","v":0},{"$f":"H18*B18","v":0}]
["Мочеприемник носимый ножной Люкс 750 мл, длина трубки 50 см, Apexmed",155,null,null,null,null,null,0,null,0,0,0]
["Мочеприемник прикроватный 1000 мл, Apexmed",41,null,null,null,null,null,0,null,0,0,0]
["Мочеприемник прикроватный 2000 мл, Apexmed",44,null,null,null,null,null,0,null,0,0,0]
["Мочеприемник прикроватный Люкс 2000 мл, Apexmed",192,null,null,null,null,null,0,null,0,0,0]
["Катетер для самокатетеризации мужской лубрицированный Coloplast EasiCath 12 разм",80,null,null,null,null,null,0,null,0,0,0]
[]
[]
[]
["ВСЕГО:",null,null,null,{"$f":"SUM(E3:E26)","v":1},{"$f":"SUM(F3:F26)","v":2},{"$f":"SUM(G3:G26)","v":2},{"$f":"SUM(H3:H26)","v":5},null,{"$f":"SUM(J3:J26)+E37","v":3800},{"$f":"SUM(K3:K26)","v":8490},{"$f":"SUM(L3:L26)+L37","v":13510}]
[null,"Цена (розн.)",null,null,"Продано через КАССУ","Передано \"Аксиомус\"","Передано \"DPD\"","Всего продано (шт.)",null,"В кассе наличных (руб.)","Выбито чеков за товар на сумму","Выручка (общ.)"]
[]
["Доставка",null,null,null,"Экспресс доставка",null,null,"доставка \"Аксиомус\""]
["Доставка ",100,null,null,null,null,null,null,null,null,null,{"$f":"B31*(H31+E31)","v":0}]
["Доставка ",300,null,null,null,null,null,1,null,null,null,300]
["Доставка",350,null,null,null,null,null,1,null,null,null,350]
["Доставка ",400,null,null,null,null,null,null,null,null,null,0]
["Доставка ",550,null,null,null,null,null,null,null,null,null,0]
["Доставка ",800,null,null,null,null,null,null,null,null,null,0]
["ВСЕГО:",null,null,null,{"$f":"(E31*B31)+(E32*B32)+(E33*B33)+(E34*B34)+(E35*B35)+(E36*B36)","v":0},null,null,{"$f":"(H31*B31)+(H32*B32)+(H33*B33)+(H34*B34)+(H35*B35)+(H36*B36)","v":650},null,null,null,{"$f":"SUM(L31:L36)","v":650}]
[]
[null,null,null,null,null,null,null,null,null,"Z-ОТЧЕТ",null,{"$f":"K27+L37","v":9140}]

{"sheet":"18.12.2016","index":2,"n_rows":39,"n_cols":12,"rows_kept":39,"cut":false,"hidden":false,"merged":[[26,0,26,1],[36,0,36,1]]}
["Название","Цена (розн.)","Количество товара на  начало смены","Возврат товара на склад","Продано через КАССУ","Передано \"Аксиомус\"","Передано \"DPD\"","Всего продано (шт.)","Количество товара на  конец смены","В кассе наличных (руб.)","Выбито чеков за товар на сумму","Выручка (общ.)"]
[]
["Зеркало Beurer FCE79 косметическое",3800,{"$f":"'10.12.2016'!I3","v":92},1,1,1,1,{"$f":"E3+F3+G3","v":3},{"$f":"C3-H3+D3","v":90},{"$f":"B3*E3","v":3800},{"$f":"(E3*B3)+(F3*B3)","v":7600},{"$f":"H3*B3","v":11400}]
["Зеркало Beurer BS05 косметическое",570,{"$f":"'10.12.2016'!I4","v":83},null,null,null,null,0,{"$f":"C4-H4+D4","v":83},0,0,0]
["Маникюрный набор МР05",890,{"$f":"'10.12.2016'!I5","v":55},null,1,null,1,2,53,890,890,1780]
["Маникюрно-педикюрный набор Beurer MPE60 (9 насадок)",3800,{"$f":"'10.12.2016'!I6","v":3},null,null,null,null,0,3,0,0,0]
["Маникюрно-педикюрный набор Beurer MPE100 (10 насадок)",9500,{"$f":"'10.12.2016'!I7","v":56},null,null,null,null,0,56,0,0,0]
["Прибор для удаления мозолей Beurer MPE50",2900,{"$f":"'10.12.2016'!I8","v":15},null,null,null,null,0,15,0,0,0]
["Эпилятор HLE60",3000,{"$f":"'10.12.2016'!I9","v":0},null,null,null,null,0,null,0,0,0]
["Прибор для сушки ногтей Beurer MPE58",4100,{"$f":"'10.12.2016'!I10","v":0},null,null,null,null,0,null,0,0,0]
["Массажная щетка для лица Beurer FCE60",2350,{"$f":"'10.12.2016'!I11","v":0},null,null,null,null,0,null,0,0,0]
["Фен для волос Beurer HDE30",1850,{"$f":"'10.12.2016'!I12","v":0},null,null,null,null,0,null,0,0,0]
["Мультистайлер для волос BEURER HTE50",2000,{"$f":"'10.12.2016'!I13","v":0},null,null,null,null,0,null,0,0,0]
["Парафиновая ванночка Beurer MPE70",3100,{"$f":"'10.12.2016'!I14","v":0},null,null,null,null,0,null,0,0,0]
["Электробритва женская BEURER HLE30",2250,{"$f":"'10.12.2016'!I15","v":0},null,null,null,null,0,null,0,0,0]
["Прибор для удаления волос воском BEURER HLE40",2565,null,null,null,null,null,0,null,0,0,0]
["Расходные и перевязочные материалы"]
["Мочеприемник носимый ножной Люкс 750 мл, длина трубки 28 см, Apexmed",225,null,null,null,null,null,{"$f":"E18+F18+G18","v":0},null,{"$f":"B18*E18","v":0},{"$f":"(E18*B18)+(F18*B18)","v":0},{"$f":"H18*B18","v":0}]
["Мочеприемник носимый ножной Люкс 750 мл, длина трубки 50 см, Apexmed",155,null,null,null,null,null,0,null,0,0,0]
["Мочеприемник прикроватный 1000 мл, Apexmed",41,null,null,null,null,null,0,null,0,0,0]
["Мочеприемник прикроватный 2000 мл, Apexmed",44,null,null,null,null,null,0,null,0,0,0]
["Мочеприемник прикроватный Люкс 2000 мл, Apexmed",192,null,null,null,null,null,0,null,0,0,0]
["Катетер для самокатетеризации мужской лубрицированный Coloplast EasiCath 12 разм",80,null,null,null,null,null,0,null,0,0,0]
[]
[]
[]
["ВСЕГО:",null,null,null,{"$f":"SUM(E3:E26)","v":2},{"$f":"SUM(F3:F26)","v":1},{"$f":"SUM(G3:G26)","v":2},{"$f":"SUM(H3:H26)","v":5},null,{"$f":"SUM(J3:J26)+E37","v":4690},{"$f":"SUM(K3:K26)","v":8490},{"$f":"SUM(L3:L26)+L37","v":13830}]
[null,"Цена (розн.)",null,null,"Продано через КАССУ","Передано \"Аксиомус\"","Передано \"DPD\"","Всего продано (шт.)",null,"В кассе наличных (руб.)","Выбито чеков за товар на сумму","Выручка (общ.)"]
[]
["Доставка",null,null,null,"Экспресс доставка",null,null,"доставка \"Аксиомус\""]
["Доставка ",100,null,null,null,null,null,null,null,null,null,{"$f":"B31*(H31+E31)","v":0}]
["Доставка ",300,null,null,null,null,null,1,null,null,null,300]
["Доставка",350,null,null,null,null,null,1,null,null,null,350]
["Доставка ",400,null,null,null,null,null,null,null,null,null,0]
["Доставка ",550,null,null,null,null,null,null,null,null,null,0]
["Доставка ",800,null,null,null,null,null,null,null,null,null,0]
["ВСЕГО:",null,null,null,{"$f":"(E31*B31)+(E32*B32)+(E33*B33)+(E34*B34)+(E35*B35)+(E36*B36)","v":0},null,null,{"$f":"(H31*B31)+(H32*B32)+(H33*B33)+(H34*B34)+(H35*B35)+(H36*B36)","v":650},null,null,null,{"$f":"SUM(L31:L36)","v":650}]
[]
[null,null,null,null,null,null,null,null,null,"Z-ОТЧЕТ",null,{"$f":"K27+L37","v":9140}]

{"sheet":"22.12.2016","index":3,"n_rows":39,"n_cols":12,"rows_kept":39,"cut":false,"hidden":false,"merged":[[26,0,26,1],[36,0,36,1]]}
["Название","Цена (розн.)","Количество товара на  начало смены","Возврат товара на склад","Продано через КАССУ","Передано \"Аксиомус\"","Передано \"DPD\"","Всего продано (шт.)","Количество товара на  конец смены","В кассе наличных (руб.)","Выбито чеков за товар на сумму","Выручка (общ.)"]
[]
["Зеркало Beurer FCE79 косметическое",3800,{"$f":"'18.12.2016'!I3","v":90},null,null,null,null,{"$f":"E3+F3+G3","v":0},{"$f":"C3-H3+D3","v":90},{"$f":"B3*E3","v":0},{"$f":"(E3*B3)+(F3*B3)","v":0},{"$f":"H3*B3","v":0}]
["Зеркало Beurer BS05 косметическое",570,{"$f":"'18.12.2016'!I4","v":83},null,null,null,null,0,{"$f":"C4-H4+D4","v":83},0,0,0]
["Маникюрный набор МР05",890,{"$f":"'18.12.2016'!I5","v":53},null,null,null,null,0,53,0,0,0]
["Маникюрно-педикюрный набор Beurer MPE60 (9 насадок)",3800,{"$f":"'18.12.2016'!I6","v":3},null,null,null,null,0,3,0,0,0]
["Маникюрно-педикюрный набор Beurer MPE100 (10 насадок)",9500,{"$f":"'18.12.2016'!I7","v":56},null,null,null,null,0,56,0,0,0]
["Прибор для удаления мозолей Beurer MPE50",2900,{"$f":"'18.12.2016'!I8","v":15},null,null,null,null,0,15,0,0,0]
["Эпилятор HLE60",3000,{"$f":"'18.12.2016'!I9","v":0},null,null,null,null,0,null,0,0,0]
["Прибор для сушки ногтей Beurer MPE58",4100,{"$f":"'18.12.2016'!I10","v":0},null,null,null,null,0,null,0,0,0]
["Массажная щетка для лица Beurer FCE60",2350,{"$f":"'18.12.2016'!I11","v":0},null,null,null,null,0,null,0,0,0]
["Фен для волос Beurer HDE30",1850,{"$f":"'18.12.2016'!I12","v":0},null,null,null,null,0,null,0,0,0]
["Мультистайлер для волос BEURER HTE50",2000,{"$f":"'18.12.2016'!I13","v":0},null,null,null,null,0,null,0,0,0]
["Парафиновая ванночка Beurer MPE70",3100,{"$f":"'18.12.2016'!I14","v":0},null,null,null,null,0,null,0,0,0]
["Электробритва женская BEURER HLE30",2250,{"$f":"'18.12.2016'!I15","v":0},null,null,null,null,0,null,0,0,0]
["Прибор для удаления волос воском BEURER HLE40",2565,{"$f":"'18.12.2016'!I16","v":0},null,null,null,null,0,null,0,0,0]
["Расходные и перевязочные материалы"]
["Мочеприемник носимый ножной Люкс 750 мл, длина трубки 28 см, Apexmed",225,{"$f":"'18.12.2016'!I18","v":0},null,null,null,null,{"$f":"E18+F18+G18","v":0},null,{"$f":"B18*E18","v":0},{"$f":"(E18*B18)+(F18*B18)","v":0},{"$f":"H18*B18","v":0}]
["Мочеприемник носимый ножной Люкс 750 мл, длина трубки 50 см, Apexmed",155,{"$f":"'18.12.2016'!I19","v":0},null,null,null,null,0,null,0,0,0]
["Мочеприемник прикроватный 1000 мл, Apexmed",41,{"$f":"'18.12.2016'!I20","v":0},null,null,null,null,0,null,0,0,0]
["Мочеприемник прикроватный 2000 мл, Apexmed",44,{"$f":"'18.12.2016'!I21","v":0},null,null,null,null,0,null,0,0,0]
["Мочеприемник прикроватный Люкс 2000 мл, Apexmed",192,{"$f":"'18.12.2016'!I22","v":0},null,null,null,null,0,null,0,0,0]
["Катетер для самокатетеризации мужской лубрицированный Coloplast EasiCath 12 разм",80,{"$f":"'18.12.2016'!I23","v":0},null,null,null,null,0,null,0,0,0]
[]
[]
[]
["ВСЕГО:",null,null,null,{"$f":"SUM(E3:E26)","v":0},{"$f":"SUM(F3:F26)","v":0},{"$f":"SUM(G3:G26)","v":0},{"$f":"SUM(H3:H26)","v":0},null,{"$f":"SUM(J3:J26)+E37","v":0},{"$f":"SUM(K3:K26)","v":0},{"$f":"SUM(L3:L26)+L37","v":650}]
[null,"Цена (розн.)",null,null,"Продано через КАССУ","Передано \"Аксиомус\"","Передано \"DPD\"","Всего продано (шт.)",null,"В кассе наличных (руб.)","Выбито чеков за товар на сумму","Выручка (общ.)"]
[]
["Доставка",null,null,null,"Экспресс доставка",null,null,"доставка \"Аксиомус\""]
["Доставка ",100,{"$f":"'18.12.2016'!I31","v":0},null,null,null,null,null,null,null,null,{"$f":"B31*(H31+E31)","v":0}]
["Доставка ",300,{"$f":"'18.12.2016'!I32","v":0},null,null,null,null,1,null,null,null,300]
["Доставка",350,{"$f":"'18.12.2016'!I33","v":0},null,null,null,null,1,null,null,null,350]
["Доставка ",400,{"$f":"'18.12.2016'!I34","v":0},null,null,null,null,null,null,null,null,0]
["Доставка ",550,{"$f":"'18.12.2016'!I35","v":0},null,null,null,null,null,null,null,null,0]
["Доставка ",800,{"$f":"'18.12.2016'!I36","v":0},null,null,null,null,null,null,null,null,0]
["ВСЕГО:",null,null,null,{"$f":"(E31*B31)+(E32*B32)+(E33*B33)+(E34*B34)+(E35*B35)+(E36*B36)","v":0},null,null,{"$f":"(H31*B31)+(H32*B32)+(H33*B33)+(H34*B34)+(H35*B35)+(H36*B36)","v":650},null,null,null,{"$f":"SUM(L31:L36)","v":650}]
[]
[null,null,null,null,null,null,null,null,null,"Z-ОТЧЕТ",null,{"$f":"K27+L37","v":650}]